[Event "*** Titled Tuesday Blitz"]
[Site "Chess.com"]
[Date "2018.10.02"]
[Round "9"]
[White "nochewycandy"]
[Black "biostatistician"]
[Result "1-0"]
[WhiteElo "2206"]
[BlackElo "2556"]
[TimeControl "180+2"]
[EndTime "14:57:53 PDT"]
[Termination "nochewycandy won on time"]

1. c4 {[%clk 0:03:01.9]} 1... Nf6 {[%clk 0:03:00.2]} 2. g3 {[%clk 0:03:02.9]}
2... g6 {[%clk 0:03:02.1]} 3. Bg2 {[%clk 0:03:04.1]} 3... Bg7 {[%clk 0:03:04]}
4. Nc3 {[%clk 0:03:05.4]} 4... O-O {[%clk 0:03:05.9]} 5. Nf3 {[%clk 0:03:02.7]}
5... b6 {[%clk 0:03:07.1]} 6. O-O {[%clk 0:03:03.1]} 6... Bb7 {[%clk 0:03:08.6]}
7. d3 {[%clk 0:03:03.3]} 7... c5 {[%clk 0:03:09.6]} 8. e4 {[%clk 0:03:04.1]}
8... Nc6 {[%clk 0:03:10.4]} 9. h3 {[%clk 0:02:57.1]} 9... Ne8 {[%clk 0:03:11.3]}
10. Rb1 {[%clk 0:02:54.3]} 10... Nc7 {[%clk 0:03:12]} 11. a3 {[%clk 0:02:55.2]}
11... a5 {[%clk 0:03:07.5]} 12. Be3 {[%clk 0:02:53.2]} 12... Ne6 {[%clk
0:03:08.1]} 13. Nd5 {[%clk 0:02:50.3]} 13... Ned4 {[%clk 0:03:06.8]} 14. b4
{[%clk 0:02:42]} 14... axb4 {[%clk 0:02:48.1]} 15. axb4 {[%clk 0:02:43.9]} 15...
Ra7 {[%clk 0:02:48.5]} 16. b5 {[%clk 0:02:19.9]} 16... Nxf3+ {[%clk 0:02:49]}
17. Bxf3 {[%clk 0:02:19.1]} 17... Nd4 {[%clk 0:02:50.6]} 18. Bg2 {[%clk
0:02:10.9]} 18... Bxd5 {[%clk 0:02:44]} 19. exd5 {[%clk 0:02:10.1]} 19... d6
{[%clk 0:02:45]} 20. Re1 {[%clk 0:02:10.5]} 20... Ra2 {[%clk 0:02:41.7]} 21.
Bxd4 {[%clk 0:01:59]} 21... Bxd4 {[%clk 0:02:42.4]} 22. Re2 {[%clk 0:02:00.7]}
22... Qa8 {[%clk 0:02:33.1]} 23. Rc1 {[%clk 0:01:57.8]} 23... Qa3 {[%clk
0:02:26.8]} 24. Rxa2 {[%clk 0:01:58.5]} 24... Qxa2 {[%clk 0:02:28.2]} 25. Qc2
{[%clk 0:01:58.2]} 25... Qa3 {[%clk 0:02:28.4]} 26. Re1 {[%clk 0:01:50.7]} 26...
Bf6 {[%clk 0:02:25.6]} 27. h4 {[%clk 0:01:47.7]} 27... h5 {[%clk 0:02:26.1]} 28.
Bh3 {[%clk 0:01:44.9]} 28... Ra8 {[%clk 0:02:27.3]} 29. Qe2 {[%clk 0:01:29.8]}
29... Qc3 {[%clk 0:02:24.4]} 30. Qe4 {[%clk 0:01:27.4]} 30... Ra2 {[%clk
0:02:21.7]} 31. Re2 {[%clk 0:01:20.9]} 31... Ra1+ {[%clk 0:02:22.2]} 32. Kg2
{[%clk 0:01:12.9]} 1-0

[Event "*** Titled Tuesday Blitz"]
[Site "Chess.com"]
[Date "2018.10.02"]
[Round "9"]
[White "DishonorOnYourCow"]
[Black "JonahWillow"]
[Result "0-1"]
[WhiteElo "2267"]
[BlackElo "2698"]
[TimeControl "180+2"]
[EndTime "14:58:09 PDT"]
[Termination "JonahWillow won by resignation"]

1. d4 {[%clk 0:03:01.9]} 1... Nf6 {[%clk 0:02:59.6]} 2. c4 {[%clk 0:03:02.1]}
2... e6 {[%clk 0:02:56.7]} 3. Nc3 {[%clk 0:03:00]} 3... c5 {[%clk 0:02:58.6]} 4.
e3 {[%clk 0:02:45]} 4... cxd4 {[%clk 0:02:20.1]} 5. exd4 {[%clk 0:02:39.1]} 5...
d5 {[%clk 0:02:20.9]} 6. cxd5 {[%clk 0:02:32.6]} 6... Nxd5 {[%clk 0:02:17.5]} 7.
Nf3 {[%clk 0:02:31.2]} 7... Bb4 {[%clk 0:02:16.8]} 8. Bd2 {[%clk 0:02:27.2]}
8... O-O {[%clk 0:02:15.6]} 9. Bd3 {[%clk 0:02:25.3]} 9... h6 {[%clk 0:02:13]}
10. Kf1 {[%clk 0:02:20.2]} 10... Nc6 {[%clk 0:02:03.7]} 11. h4 {[%clk
0:02:18.3]} 11... a6 {[%clk 0:01:17]} 12. Rh3 {[%clk 0:01:59.6]} 12... b5 {[%clk
0:01:15.7]} 13. Rg3 {[%clk 0:01:57.6]} 13... Bd6 {[%clk 0:01:15.4]} 14. Rh3
{[%clk 0:01:44.3]} 14... Bb7 {[%clk 0:01:14.2]} 15. Nxd5 {[%clk 0:01:32.7]}
15... exd5 {[%clk 0:01:14.3]} 16. Bc2 {[%clk 0:01:31.2]} 16... Re8 {[%clk
0:01:12.9]} 17. Be3 {[%clk 0:01:31]} 17... Qf6 {[%clk 0:01:12]} 18. Qd3 {[%clk
0:01:28.2]} 18... g6 {[%clk 0:01:12]} 19. a3 {[%clk 0:01:27.8]} 19... Kg7 {[%clk
0:01:07]} 20. h5 {[%clk 0:01:26.7]} 20... Bc8 {[%clk 0:01:06.4]} 21. Rh1 {[%clk
0:01:26.8]} 21... Bf5 {[%clk 0:01:03.3]} 22. Qd2 {[%clk 0:01:26.7]} 22... g5
{[%clk 0:01:03.1]} 23. Nxg5 {[%clk 0:00:58.8]} 23... Bxc2 {[%clk 0:00:53.7]} 24.
Qxc2 {[%clk 0:00:54.8]} 24... hxg5 {[%clk 0:00:51.7]} 25. h6+ {[%clk 0:00:49.2]}
25... Kh8 {[%clk 0:00:52.6]} 26. Qxc6 {[%clk 0:00:48.9]} 26... Rac8 {[%clk
0:00:51.1]} 27. Qxd5 {[%clk 0:00:48.3]} 27... Rxe3 {[%clk 0:00:49.5]} 28. Qb7
{[%clk 0:00:41.5]} 28... Rc2 {[%clk 0:00:44.6]} 29. f3 {[%clk 0:00:31.7]} 29...
Qf5 {[%clk 0:00:38]} 30. h7 {[%clk 0:00:19.4]} 30... Qd3+ {[%clk 0:00:37]} 31.
Kg1 {[%clk 0:00:19.6]} 31... Qxd4 {[%clk 0:00:33.8]} 32. Qa8+ {[%clk 0:00:18.2]}
32... Re8+ {[%clk 0:00:34.6]} 0-1

[Event "*** Titled Tuesday Blitz"]
[Site "Chess.com"]
[Date "2018.10.02"]
[Round "9"]
[White "RiskyDecision"]
[Black "luizzy"]
[Result "1-0"]
[WhiteElo "2403"]
[BlackElo "2400"]
[TimeControl "180+2"]
[EndTime "14:58:18 PDT"]
[Termination "RiskyDecision won by resignation"]

1. d4 {[%clk 0:03:01.9]} 1... Nf6 {[%clk 0:03:00.6]} 2. c4 {[%clk 0:03:02.4]}
2... g6 {[%clk 0:03:01.9]} 3. g3 {[%clk 0:03:03]} 3... Bg7 {[%clk 0:03:02.5]} 4.
Bg2 {[%clk 0:03:04.4]} 4... O-O {[%clk 0:03:03.2]} 5. Nc3 {[%clk 0:03:04.8]}
5... d6 {[%clk 0:03:03.4]} 6. Nf3 {[%clk 0:03:05.6]} 6... Nbd7 {[%clk
0:03:02.3]} 7. O-O {[%clk 0:03:06.3]} 7... e5 {[%clk 0:03:02.8]} 8. e4 {[%clk
0:03:07.1]} 8... c6 {[%clk 0:03:03.1]} 9. h3 {[%clk 0:03:07]} 9... h6 {[%clk
0:03:03.3]} 10. Be3 {[%clk 0:03:01.7]} 10... Qc7 {[%clk 0:03:03.9]} 11. Rc1
{[%clk 0:02:55.3]} 11... a5 {[%clk 0:03:00.9]} 12. c5 {[%clk 0:02:40.7]} 12...
dxc5 {[%clk 0:02:28.8]} 13. dxe5 {[%clk 0:02:34.2]} 13... Nxe5 {[%clk
0:02:22.1]} 14. Nxe5 {[%clk 0:02:25.4]} 14... Qxe5 {[%clk 0:02:23.4]} 15. f4
{[%clk 0:02:26.1]} 15... Qe7 {[%clk 0:01:56.1]} 16. e5 {[%clk 0:02:26.7]} 16...
Rd8 {[%clk 0:01:18.1]} 17. Qe2 {[%clk 0:02:27]} 17... Nd5 {[%clk 0:01:06]} 18.
Nxd5 {[%clk 0:02:25]} 18... cxd5 {[%clk 0:01:07.9]} 19. Bxc5 {[%clk 0:02:26]}
19... Qe6 {[%clk 0:01:08.7]} 20. Rfd1 {[%clk 0:02:14.2]} 20... b6 {[%clk
0:01:06.9]} 21. Bd4 {[%clk 0:02:02]} 21... Ba6 {[%clk 0:00:58.7]} 22. Qe3 {[%clk
0:01:56.6]} 22... Rab8 {[%clk 0:00:59.4]} 23. Rc7 {[%clk 0:01:47.8]} 23... Bf8
{[%clk 0:00:56.4]} 24. Rdc1 {[%clk 0:01:40.8]} 24... Bb5 {[%clk 0:00:48.8]} 25.
g4 {[%clk 0:01:33.6]} 25... a4 {[%clk 0:00:45.2]} 26. Qf2 {[%clk 0:01:31.1]}
26... Bd3 {[%clk 0:00:36.1]} 27. Qe3 {[%clk 0:01:27]} 27... Bb5 {[%clk
0:00:36.7]} 28. Qf3 {[%clk 0:01:24.6]} 28... Bc4 {[%clk 0:00:20.7]} 29. f5
{[%clk 0:01:23.4]} 29... gxf5 {[%clk 0:00:21.9]} 30. gxf5 {[%clk 0:01:24.9]}
30... Qe8 {[%clk 0:00:22.8]} 31. e6 {[%clk 0:01:13.5]} 31... Bd6 {[%clk
0:00:07.6]} 32. exf7+ {[%clk 0:01:10]} 32... Qxf7 {[%clk 0:00:09.2]} 33. Qg4+
{[%clk 0:00:58.4]} 33... Kf8 {[%clk 0:00:06]} 34. Rxf7+ {[%clk 0:00:57.1]} 34...
Kxf7 {[%clk 0:00:07.9]} 35. Qg6+ {[%clk 0:00:57.9]} 35... Ke7 {[%clk 0:00:08.9]}
36. Qg7+ {[%clk 0:00:52.2]} 1-0

[Event "*** Titled Tuesday Blitz"]
[Site "Chess.com"]
[Date "2018.10.02"]
[Round "9"]
[White "Kawhi_Leonard2"]
[Black "Blagorod"]
[Result "1-0"]
[WhiteElo "2280"]
[BlackElo "2047"]
[TimeControl "180+2"]
[EndTime "14:58:27 PDT"]
[Termination "Kawhi_Leonard2 won by resignation"]

1. e4 {[%clk 0:03:01.9]} 1... e5 {[%clk 0:03:00.8]} 2. Nf3 {[%clk 0:03:02.3]}
2... Nf6 {[%clk 0:03:02.3]} 3. Nxe5 {[%clk 0:03:02.4]} 3... d6 {[%clk 0:03:03]}
4. Nf3 {[%clk 0:03:03.7]} 4... Nxe4 {[%clk 0:03:04.6]} 5. d4 {[%clk 0:03:05.1]}
5... d5 {[%clk 0:03:05.7]} 6. Bd3 {[%clk 0:03:06.3]} 6... Nc6 {[%clk 0:03:06.1]}
7. O-O {[%clk 0:03:07.8]} 7... Be7 {[%clk 0:03:07.3]} 8. c4 {[%clk 0:03:09]}
8... Nb4 {[%clk 0:03:07.5]} 9. Be2 {[%clk 0:03:09.5]} 9... O-O {[%clk
0:03:07.6]} 10. Nc3 {[%clk 0:03:10.7]} 10... Nxc3 {[%clk 0:02:58.5]} 11. bxc3
{[%clk 0:03:11.3]} 11... Nc6 {[%clk 0:02:57.9]} 12. Rb1 {[%clk 0:03:06.9]} 12...
Rb8 {[%clk 0:02:36.6]} 13. cxd5 {[%clk 0:03:01.8]} 13... Qxd5 {[%clk 0:02:36.3]}
14. c4 {[%clk 0:03:03.1]} 14... Qf5 {[%clk 0:02:29.8]} 15. Be3 {[%clk
0:02:58.8]} 15... Rd8 {[%clk 0:02:22.7]} 16. Qa4 {[%clk 0:02:44.2]} 16... a6
{[%clk 0:01:44.8]} 17. Rfe1 {[%clk 0:02:13.7]} 17... Bf6 {[%clk 0:01:42.9]} 18.
Red1 {[%clk 0:01:59.5]} 18... h6 {[%clk 0:01:12.4]} 19. h3 {[%clk 0:01:59.1]}
19... Nxd4 {[%clk 0:00:50.4]} 20. Nxd4 {[%clk 0:01:58.1]} 20... Bxd4 {[%clk
0:00:51]} 21. Bxd4 {[%clk 0:01:57.2]} 21... Rxd4 {[%clk 0:00:51.3]} 22. Qe8+
{[%clk 0:01:56.8]} 22... Kh7 {[%clk 0:00:47.7]} 23. Rxd4 {[%clk 0:01:57.4]}
23... Qxb1+ {[%clk 0:00:48]} 24. Rd1 {[%clk 0:01:57.6]} 24... Qg6 {[%clk
0:00:24.1]} 25. Bd3 {[%clk 0:01:42.9]} 25... f5 {[%clk 0:00:19.2]} 26. Qd8
{[%clk 0:01:32.8]} 26... Qf6 {[%clk 0:00:18.8]} 27. Qxc7 {[%clk 0:01:29.7]}
27... Ra8 {[%clk 0:00:20.1]} 28. Re1 {[%clk 0:01:21.6]} 28... b5 {[%clk
0:00:19.8]} 29. c5 {[%clk 0:01:20.2]} 29... Be6 {[%clk 0:00:18.1]} 30. Qc6
{[%clk 0:01:13.2]} 30... Rd8 {[%clk 0:00:17.6]} 31. Bb1 {[%clk 0:00:45.4]} 31...
Bc4 {[%clk 0:00:16.4]} 32. Qxf6 {[%clk 0:00:43.9]} 32... gxf6 {[%clk 0:00:17.4]}
33. Bxf5+ {[%clk 0:00:45.3]} 33... Kg7 {[%clk 0:00:17.1]} 34. c6 {[%clk
0:00:46.8]} 34... Rf8 {[%clk 0:00:04.2]} 35. c7 {[%clk 0:00:47.2]} 35... Bxa2
{[%clk 0:00:05.7]} 36. c8=Q {[%clk 0:00:48.1]} 36... Rxc8 {[%clk 0:00:06.9]} 37.
Bxc8 {[%clk 0:00:49]} 37... a5 {[%clk 0:00:08.3]} 38. Ra1 {[%clk 0:00:49]} 38...
Bc4 {[%clk 0:00:08.6]} 39. Rxa5 {[%clk 0:00:49.7]} 1-0

[Event "*** Titled Tuesday Blitz"]
[Site "Chess.com"]
[Date "2018.10.02"]
[Round "9"]
[White "xamax2000"]
[Black "Saitama_Hero"]
[Result "1-0"]
[WhiteElo "2460"]
[BlackElo "2244"]
[TimeControl "180+2"]
[EndTime "14:58:48 PDT"]
[Termination "xamax2000 won on time"]

1. e4 {[%clk 0:03:01.9]} 1... c5 {[%clk 0:02:57.9]} 2. Nf3 {[%clk 0:03:00.8]}
2... d6 {[%clk 0:02:58.7]} 3. Bb5+ {[%clk 0:03:01.4]} 3... Bd7 {[%clk
0:02:58.1]} 4. Bxd7+ {[%clk 0:03:01]} 4... Qxd7 {[%clk 0:03:00]} 5. c4 {[%clk
0:03:01]} 5... Nf6 {[%clk 0:02:59.9]} 6. Nc3 {[%clk 0:03:00.9]} 6... g6 {[%clk
0:03:01.4]} 7. d4 {[%clk 0:03:01.6]} 7... cxd4 {[%clk 0:03:00.4]} 8. Nxd4 {[%clk
0:03:03.5]} 8... Bg7 {[%clk 0:02:57.5]} 9. f3 {[%clk 0:03:04.5]} 9... Qc7 {[%clk
0:02:58]} 10. b3 {[%clk 0:03:02.1]} 10... Qa5 {[%clk 0:02:59.2]} 11. Bd2 {[%clk
0:02:47.6]} 11... Nc6 {[%clk 0:03:00.6]} 12. Nd5 {[%clk 0:02:43.4]} 12... Qd8
{[%clk 0:02:59]} 13. Bc3 {[%clk 0:02:43.2]} 13... Nxd5 {[%clk 0:02:34.8]} 14.
exd5 {[%clk 0:02:45.1]} 14... Nxd4 {[%clk 0:02:23.4]} 15. Bxd4 {[%clk 0:02:47]}
15... Qa5+ {[%clk 0:02:22.7]} 16. Kf2 {[%clk 0:02:40.5]} 16... O-O {[%clk
0:02:23.1]} 17. Bxg7 {[%clk 0:02:40.5]} 17... Kxg7 {[%clk 0:02:25]} 18. Qd4+
{[%clk 0:02:40.9]} 18... f6 {[%clk 0:02:25.3]} 19. Rhe1 {[%clk 0:02:41.4]} 19...
Rfe8 {[%clk 0:02:25.9]} 20. Re2 {[%clk 0:02:41.9]} 20... Rac8 {[%clk 0:02:26.9]}
21. Rae1 {[%clk 0:02:42.6]} 21... Rc7 {[%clk 0:02:28.2]} 22. Kg3 {[%clk
0:02:28.2]} 22... a6 {[%clk 0:02:24.1]} 23. a4 {[%clk 0:02:24]} 23... Qb4 {[%clk
0:02:20.3]} 24. Qe3 {[%clk 0:01:51.4]} 24... Rd8 {[%clk 0:01:21]} 25. h4 {[%clk
0:01:39.8]} 25... b5 {[%clk 0:01:15]} 26. cxb5 {[%clk 0:00:47]} 26... axb5
{[%clk 0:01:13.2]} 27. Qd3 {[%clk 0:00:47]} 27... Rdd7 {[%clk 0:01:06.1]} 28.
axb5 {[%clk 0:00:47]} 28... Kf7 {[%clk 0:00:43.5]} 29. Re4 {[%clk 0:00:38.1]}
29... Qc3 {[%clk 0:00:38.2]} 30. Qxc3 {[%clk 0:00:22.2]} 30... Rxc3 {[%clk
0:00:40.1]} 31. Rb4 {[%clk 0:00:22.5]} 31... Rc5 {[%clk 0:00:37]} 32. b6 {[%clk
0:00:23.6]} 32... Rb7 {[%clk 0:00:37]} 33. Ra1 {[%clk 0:00:24.6]} 33... Rxd5
{[%clk 0:00:14.6]} 34. Ra7 {[%clk 0:00:24.4]} 34... Rxa7 {[%clk 0:00:14.3]} 35.
bxa7 {[%clk 0:00:24.6]} 1-0

[Event "*** Titled Tuesday Blitz"]
[Site "Chess.com"]
[Date "2018.10.02"]
[Round "9"]
[White "severomorskij"]
[Black "W_Amadeus"]
[Result "1-0"]
[WhiteElo "2696"]
[BlackElo "2615"]
[TimeControl "180+2"]
[EndTime "14:58:57 PDT"]
[Termination "severomorskij won by resignation"]

1. d4 {[%clk 0:03:01.9]} 1... d6 {[%clk 0:03:01.4]} 2. e4 {[%clk 0:03:02.6]}
2... Nf6 {[%clk 0:03:01.7]} 3. Nc3 {[%clk 0:03:03.5]} 3... c6 {[%clk 0:03:02.9]}
4. f4 {[%clk 0:03:02.6]} 4... Qa5 {[%clk 0:03:00]} 5. Bd3 {[%clk 0:03:03.5]}
5... Bg4 {[%clk 0:02:56.4]} 6. Nf3 {[%clk 0:03:04]} 6... Nbd7 {[%clk 0:02:39.8]}
7. Be3 {[%clk 0:03:00.7]} 7... e5 {[%clk 0:02:39.1]} 8. h3 {[%clk 0:02:52.5]}
8... Bxf3 {[%clk 0:02:39.9]} 9. Qxf3 {[%clk 0:02:53.3]} 9... Qb4 {[%clk
0:02:41.1]} 10. a3 {[%clk 0:02:14.7]} 10... Qxb2 {[%clk 0:01:59]} 11. Kd2 {[%clk
0:02:14.8]} 11... exf4 {[%clk 0:01:48.6]} 12. Rhb1 {[%clk 0:02:09.2]} 12...
fxe3+ {[%clk 0:01:48.9]} 13. Qxe3 {[%clk 0:02:10.3]} 13... Qxa1 {[%clk
0:01:49.4]} 14. Rxa1 {[%clk 0:02:11]} 14... Be7 {[%clk 0:01:42.3]} 15. Rb1
{[%clk 0:02:04.5]} 15... b6 {[%clk 0:01:30]} 16. e5 {[%clk 0:02:03]} 16... dxe5
{[%clk 0:01:30.6]} 17. dxe5 {[%clk 0:02:04.1]} 17... Nd5 {[%clk 0:01:32.3]} 18.
Nxd5 {[%clk 0:02:03.1]} 18... cxd5 {[%clk 0:01:34.2]} 19. e6 {[%clk 0:01:53.2]}
19... Nf6 {[%clk 0:01:31.6]} 20. Bb5+ {[%clk 0:01:29.4]} 20... Kf8 {[%clk
0:01:32.3]} 21. Bd3 {[%clk 0:01:30.5]} 21... Bxa3 {[%clk 0:01:11.9]} 22. g4
{[%clk 0:01:16.1]} 22... Bc5 {[%clk 0:01:04.7]} 23. Qf4 {[%clk 0:01:07.7]} 23...
h6 {[%clk 0:01:01.2]} 24. Qc7 {[%clk 0:01:01.6]} 24... fxe6 {[%clk 0:00:55.2]}
25. Bg6 {[%clk 0:01:01.8]} 25... Be7 {[%clk 0:00:52.3]} 26. Qc6 {[%clk 0:01:01]}
26... Rd8 {[%clk 0:00:40.5]} 27. Qxe6 {[%clk 0:00:59.2]} 27... Ne4+ {[%clk
0:00:40.4]} 28. Kd1 {[%clk 0:00:36.6]} 28... Ng5 {[%clk 0:00:28.2]} 29. Qf5+
{[%clk 0:00:36.1]} 29... Bf6 {[%clk 0:00:27.6]} 30. h4 {[%clk 0:00:36.2]} 30...
Ke7 {[%clk 0:00:13.2]} 31. hxg5 {[%clk 0:00:32.6]} 31... hxg5 {[%clk 0:00:15.1]}
32. Bh5 {[%clk 0:00:23.7]} 32... Kd6 {[%clk 0:00:11.5]} 33. Rb3 {[%clk 0:00:21]}
33... Kc7 {[%clk 0:00:11]} 34. Rd3 {[%clk 0:00:21.2]} 34... Rd6 {[%clk
0:00:11.8]} 35. c3 {[%clk 0:00:21.7]} 35... Rhd8 {[%clk 0:00:12.1]} 36. Kc2
{[%clk 0:00:19.3]} 36... R8d7 {[%clk 0:00:11.8]} 37. Kb3 {[%clk 0:00:20.2]}
37... Rc6 {[%clk 0:00:12.1]} 38. Be8 {[%clk 0:00:19.6]} 1-0

[Event "*** Titled Tuesday Blitz"]
[Site "Chess.com"]
[Date "2018.10.02"]
[Round "9"]
[White "ruvat"]
[Black "Cryptinz"]
[Result "0-1"]
[WhiteElo "2286"]
[BlackElo "2368"]
[TimeControl "180+2"]
[EndTime "14:59:09 PDT"]
[Termination "Cryptinz won by resignation"]

1. d4 {[%clk 0:03:01.9]} 1... Nf6 {[%clk 0:02:59.6]} 2. c4 {[%clk 0:03:02.4]}
2... e6 {[%clk 0:03:00]} 3. g3 {[%clk 0:03:02.4]} 3... c5 {[%clk 0:02:58.5]} 4.
d5 {[%clk 0:03:02.6]} 4... d6 {[%clk 0:02:59.8]} 5. Nc3 {[%clk 0:03:02.4]} 5...
Be7 {[%clk 0:02:52.4]} 6. Bg2 {[%clk 0:03:01.5]} 6... O-O {[%clk 0:02:53.4]} 7.
Nf3 {[%clk 0:03:00.2]} 7... exd5 {[%clk 0:02:53.1]} 8. cxd5 {[%clk 0:03:00.2]}
8... Re8 {[%clk 0:02:53.8]} 9. O-O {[%clk 0:03:01]} 9... a6 {[%clk 0:02:53.6]}
10. a4 {[%clk 0:03:00.6]} 10... b6 {[%clk 0:02:54.9]} 11. h3 {[%clk 0:02:55.9]}
11... Bb7 {[%clk 0:02:55.9]} 12. e4 {[%clk 0:02:55.3]} 12... Nbd7 {[%clk
0:02:53.4]} 13. Re1 {[%clk 0:02:54.7]} 13... Bf8 {[%clk 0:02:49.8]} 14. Qc2
{[%clk 0:02:40.7]} 14... g6 {[%clk 0:01:58]} 15. Bf4 {[%clk 0:02:33.7]} 15...
Nh5 {[%clk 0:01:57.9]} 16. Bg5 {[%clk 0:02:27.4]} 16... Qc7 {[%clk 0:01:57.8]}
17. g4 {[%clk 0:02:25.7]} 17... Ng7 {[%clk 0:01:56.5]} 18. Bf4 {[%clk
0:02:00.1]} 18... h5 {[%clk 0:01:54.6]} 19. Rad1 {[%clk 0:01:43.6]} 19... hxg4
{[%clk 0:01:53.7]} 20. hxg4 {[%clk 0:01:45.4]} 20... Ne5 {[%clk 0:01:51.1]} 21.
Nxe5 {[%clk 0:01:36.6]} 21... dxe5 {[%clk 0:01:53]} 22. Be3 {[%clk 0:01:25.7]}
22... Qd7 {[%clk 0:01:53.1]} 23. Qe2 {[%clk 0:01:19.5]} 23... Bd6 {[%clk
0:01:51.5]} 24. Qf3 {[%clk 0:01:18]} 24... Bc8 {[%clk 0:01:48]} 25. Bh3 {[%clk
0:01:01.5]} 25... Nh5 {[%clk 0:01:48.4]} 26. Ne2 {[%clk 0:00:57.6]} 26... Bf8
{[%clk 0:01:30]} 27. Kh2 {[%clk 0:00:57.3]} 27... Ng7 {[%clk 0:01:18.6]} 28. Nc3
{[%clk 0:00:53.5]} 28... b5 {[%clk 0:01:19.3]} 29. b3 {[%clk 0:00:39]} 29... b4
{[%clk 0:01:18.4]} 30. Nb1 {[%clk 0:00:38.5]} 30... c4 {[%clk 0:01:16.2]} 31.
bxc4 {[%clk 0:00:32.6]} 31... Qxa4 {[%clk 0:01:17.2]} 32. c5 {[%clk 0:00:31.4]}
32... f5 {[%clk 0:01:08.7]} 33. gxf5 {[%clk 0:00:29.1]} 33... gxf5 {[%clk
0:01:09.3]} 34. exf5 {[%clk 0:00:28.1]} 34... e4 {[%clk 0:01:11.2]} 35. Qg3
{[%clk 0:00:21.1]} 35... Re5 {[%clk 0:00:54.8]} 36. Rg1 {[%clk 0:00:17]} 36...
Rxf5 {[%clk 0:00:53.5]} 37. Bd4 {[%clk 0:00:15.8]} 37... Rh5 {[%clk 0:00:53.3]}
38. Bxg7 {[%clk 0:00:10.7]} 38... Rxh3+ {[%clk 0:00:54.3]} 39. Qxh3 {[%clk
0:00:10.8]} 39... Bxh3 {[%clk 0:00:56.2]} 40. Be5+ {[%clk 0:00:11.1]} 40... Kf7
{[%clk 0:00:55.8]} 41. Kxh3 {[%clk 0:00:09.3]} 41... Bxc5 {[%clk 0:00:39.8]} 42.
Rg7+ {[%clk 0:00:09.2]} 42... Kf8 {[%clk 0:00:41]} 43. d6 {[%clk 0:00:09.8]}
43... Qxd1 {[%clk 0:00:39.6]} 0-1

[Event "*** Titled Tuesday Blitz"]
[Site "Chess.com"]
[Date "2018.10.02"]
[Round "9"]
[White "HouseOfDurin"]
[Black "WPWPWP-2015"]
[Result "0-1"]
[WhiteElo "1778"]
[BlackElo "2258"]
[TimeControl "180+2"]
[EndTime "14:59:18 PDT"]
[Termination "WPWPWP-2015 won by resignation"]

1. d4 {[%clk 0:03:01.9]} 1... Nf6 {[%clk 0:02:59.6]} 2. Bg5 {[%clk 0:03:03.3]}
2... e6 {[%clk 0:02:58.3]} 3. e4 {[%clk 0:03:03.8]} 3... h6 {[%clk 0:02:58.9]}
4. Bxf6 {[%clk 0:03:04.5]} 4... Qxf6 {[%clk 0:02:59.2]} 5. e5 {[%clk 0:03:01.8]}
5... Qd8 {[%clk 0:02:59.6]} 6. Qg4 {[%clk 0:03:01]} 6... c5 {[%clk 0:02:56.9]}
7. dxc5 {[%clk 0:02:59.6]} 7... Qa5+ {[%clk 0:02:57]} 8. Nc3 {[%clk 0:02:52.4]}
8... h5 {[%clk 0:02:56.7]} 9. Qf4 {[%clk 0:02:08]} 9... Qxc5 {[%clk 0:02:53.8]}
10. O-O-O {[%clk 0:02:02.8]} 10... g5 {[%clk 0:02:53.9]} 11. Qc4 {[%clk
0:01:23.7]} 11... a6 {[%clk 0:02:43.1]} 12. Nf3 {[%clk 0:01:06.3]} 12... g4
{[%clk 0:02:36.7]} 13. Ng5 {[%clk 0:00:57.3]} 13... Qxc4 {[%clk 0:02:34.1]} 14.
Bxc4 {[%clk 0:00:57.3]} 14... f5 {[%clk 0:02:32.8]} 15. exf6 {[%clk 0:00:54.3]}
15... d5 {[%clk 0:02:25.2]} 16. Bxd5 {[%clk 0:00:44.3]} 16... Bh6 {[%clk
0:02:23.1]} 17. h4 {[%clk 0:00:35.9]} 17... gxh3 {[%clk 0:02:14.8]} 18. f4
{[%clk 0:00:35.4]} 18... exd5 {[%clk 0:02:09.3]} 19. Rhe1+ {[%clk 0:00:33.3]}
19... Kd7 {[%clk 0:01:56.9]} 20. Nxd5 {[%clk 0:00:26.4]} 20... Kc6 {[%clk
0:01:48.6]} 21. Ne7+ {[%clk 0:00:21.1]} 21... Kb6 {[%clk 0:01:47.4]} 22. gxh3
{[%clk 0:00:20.5]} 22... Nc6 {[%clk 0:01:43.6]} 23. Rd6 {[%clk 0:00:13.8]} 23...
Kc7 {[%clk 0:01:23.7]} 24. Red1 {[%clk 0:00:12.1]} 24... Bxg5 {[%clk 0:01:01.3]}
25. fxg5 {[%clk 0:00:12.6]} 25... Nxe7 {[%clk 0:01:01.9]} 26. fxe7 {[%clk
0:00:11.2]} 26... Bxh3 {[%clk 0:01:02]} 27. g6 {[%clk 0:00:06.6]} 27... Rae8
{[%clk 0:01:01.4]} 28. g7 {[%clk 0:00:05.7]} 28... Rhg8 {[%clk 0:01:01.9]} 29.
Rd8 {[%clk 0:00:05.5]} 29... Be6 {[%clk 0:01:00.4]} 30. Rxe8 {[%clk 0:00:05.8]}
30... Rxe8 {[%clk 0:01:00.2]} 31. Rg1 {[%clk 0:00:06]} 31... Bg8 {[%clk
0:00:52.5]} 32. Rf1 {[%clk 0:00:06.8]} 32... Rxe7 {[%clk 0:00:52.5]} 33. Rh1
{[%clk 0:00:05.9]} 33... Re5 {[%clk 0:00:48.4]} 34. Rf1 {[%clk 0:00:03]} 34...
Rg5 {[%clk 0:00:48.6]} 35. Rh1 {[%clk 0:00:02.6]} 35... Bf7 {[%clk 0:00:45.7]}
36. b3 {[%clk 0:00:03.7]} 36... Rxg7 {[%clk 0:00:45]} 37. Re1 {[%clk 0:00:04.6]}
37... Rh7 {[%clk 0:00:41.7]} 38. Re7+ {[%clk 0:00:04.6]} 38... Kd6 {[%clk
0:00:41]} 39. Rxb7 {[%clk 0:00:04.6]} 39... h4 {[%clk 0:00:41.8]} 40. Rb6+
{[%clk 0:00:06]} 40... Ke5 {[%clk 0:00:41.4]} 41. Rxa6 {[%clk 0:00:06.4]} 41...
h3 {[%clk 0:00:41.6]} 42. Ra5+ {[%clk 0:00:08.3]} 42... Kf4 {[%clk 0:00:40.5]}
43. Ra4+ {[%clk 0:00:08.4]} 43... Ke3 {[%clk 0:00:39.5]} 44. Ra7 {[%clk
0:00:07.3]} 44... h2 {[%clk 0:00:36.8]} 45. Re7+ {[%clk 0:00:08.8]} 45... Kf2
{[%clk 0:00:37.2]} 46. Rxf7+ {[%clk 0:00:09]} 0-1